fUST/lending_fUST_20250408
["ID","MTS","AMOUNT","RATE_DAILY","PERIOD"]
[357463961,1744075844869,-500.0,0.00022465,2]
[357463962,1744075844878,-500.0,0.00022465,2]
[357463963,1744075844888,-500.0,0.00022465,2]
[357463964,1744075844898,-500.0,0.00022465,2]
[357463965,1744075844908,-500.0,0.00022465,2]
[357463966,1744075844918,-500.0,0.00022465,2]
[357463967,1744075844928,-500.0,0.00022465,2]
[357463968,1744075844937,-500.0,0.00022465,2]
[357463969,1744075844947,-500.0,0.00022465,2]
[357463970,1744075844957,-500.0,0.00022465,2]
[357463971,1744075844967,-500.0,0.00022465,2]
[357463972,1744075844977,-500.0,0.00022465,2]
[357463973,1744075844987,-500.0,0.00022465,2]
[357463974,1744075844996,-500.0,0.00022465,2]
[357463975,1744075845006,-500.0,0.00022465,2]
[357463976,1744075845017,-500.0,0.00022465,2]
[357463977,1744075845027,-500.0,0.00022465,2]
[357463978,1744075845037,-500.0,0.00022465,2]
[357463979,1744075845047,-500.0,0.00022465,2]
[357463980,1744075845057,-171.68974358,0.00022465,2]
[357463981,1744075845066,-500.0,0.00022465,2]
[357463982,1744075845076,-500.0,0.00022465,2]
[357463983,1744075845086,-200.0,0.00022465,2]
[357463984,1744075845097,-500.0,0.00022465,2]
[357463985,1744075845107,-500.0,0.00022465,2]
[357463986,1744075845116,-595.15495533,0.00022465,2]
[357463987,1744075845126,-500.0,0.00022465,2]
[357463988,1744075845136,-392.668219,0.00022465,2]
[357463989,1744075845146,-500.0,0.00022465,2]
[357463990,1744075845157,-500.0,0.00022465,2]
[357463991,1744075845166,-500.0,0.00022465,2]
[357463992,1744075845176,-500.0,0.00022465,2]
[357463993,1744075845186,-500.0,0.00022465,2]
[357463994,1744075845195,-500.0,0.00022465,2]
[357463995,1744075845205,-500.0,0.00022465,2]
[357463996,1744075845215,-500.0,0.00022465,2]
[357463997,1744075845224,-500.0,0.00022465,2]
[357463998,1744075845234,-500.0,0.00022465,2]
[357463999,1744075845243,-684.93,0.00022465,2]
[357464000,1744075845253,-328.57899676,0.00022465,2]
[357464001,1744075845262,-500.0,0.00022465,2]
[357464002,1744075845271,-500.0,0.00022465,2]
[357464003,1744075845281,-500.0,0.00022465,2]
[357464004,1744075845291,-500.0,0.00022465,2]
[357464005,1744075845301,-500.0,0.00022465,2]
[357464006,1744075845311,-500.0,0.00022465,2]
[357464007,1744075845321,-627.85,0.00022465,2]
[357464008,1744075845331,-500.0,0.00022465,2]
[357464009,1744075845341,-500.0,0.00022465,2]
[357464010,1744075845351,-536.57,0.00022465,2]
[357464011,1744075845361,-500.0,0.00022465,2]
[357464012,1744075845371,-500.0,0.00022465,2]
[357464013,1744075845381,-635.57155888,0.00022465,2]
[357464014,1744075845390,-539.51,0.00022465,2]
[357464015,1744075845400,-500.0,0.00022465,2]
[357464016,1744075845410,-500.0,0.00022465,2]
[357464018,1744075845420,-500.0,0.00022465,2]
[357464021,1744075845430,-500.0,0.00022465,2]
[357464024,1744075845439,-500.0,0.00022465,2]
[357464027,1744075845449,-500.0,0.00022465,2]
[357464030,1744075845459,-500.0,0.00022465,2]
[357464032,1744075845469,-500.0,0.00022465,2]
[357464033,1744075845478,-500.0,0.00022465,2]
[357464034,1744075845488,-500.0,0.00022465,2]
[357464036,1744075845498,-500.0,0.00022465,2]
[357464037,1744075845507,-656.43,0.00022465,2]
[357464038,1744075845517,-500.0,0.00022465,2]
[357464039,1744075845527,-500.0,0.00022465,2]
[357464040,1744075845536,-500.0,0.00022465,2]
[357464041,1744075845546,-562.19,0.00022465,2]
[357464042,1744075845556,-500.0,0.00022465,2]
[357464043,1744075845566,-500.0,0.00022465,2]
[357464044,1744075845576,-500.0,0.00022465,2]
[357464045,1744075845588,-833.59,0.00022465,2]
[357464046,1744075845601,-500.0,0.00022465,2]
[357464047,1744075845612,-500.0,0.00022465,2]
[357464048,1744075845622,-500.0,0.00022465,2]
[357464049,1744075845631,-549.91,0.00022465,2]
[357464050,1744075845643,-500.0,0.00022465,2]
[357464051,1744075845653,-500.0,0.00022465,2]
[357464052,1744075845663,-500.0,0.00022465,2]
[357464053,1744075845673,-500.0,0.00022465,2]
[357464054,1744075845683,-500.0,0.00022465,2]
[357464055,1744075845692,-500.0,0.00022465,2]
[357464056,1744075845702,-500.0,0.00022465,2]
[357464057,1744075845712,-500.0,0.00022465,2]
[357464058,1744075845722,-500.0,0.00022465,2]
[357464059,1744075845731,-500.0,0.00022465,2]
[357464060,1744075845741,-500.0,0.00022465,2]
[357464061,1744075845750,-500.0,0.00022465,2]
[357464062,1744075845760,-500.0,0.00022465,2]
[357464063,1744075845771,-500.0,0.00022465,2]
[357464064,1744075845780,-500.0,0.00022465,2]
[357464065,1744075845790,-500.0,0.00022465,2]
[357464066,1744075845800,-511.39,0.00022465,2]
[357464067,1744075845810,-500.0,0.00022465,2]
[357464068,1744075845819,-500.0,0.00022465,2]
[357464069,1744075845836,-500.0,0.00022465,2]
[357464070,1744075845848,-500.0,0.00022465,2]
[357464071,1744075845858,-998.79,0.00022465,2]
[357464072,1744075845867,-500.0,0.00022465,2]
[357464073,1744075845878,-500.0,0.00022465,2]
[357464074,1744075845888,-500.0,0.00022465,2]
[357464075,1744075845897,-500.0,0.00022465,2]
[357464076,1744075845908,-706.46,0.00022465,2]
[357464077,1744075845918,-500.0,0.00022465,2]
[357464078,1744075845928,-500.0,0.00022465,2]
[357464079,1744075845938,-500.0,0.00022465,2]
[357464080,1744075845948,-747.15,0.00022465,2]
[357464081,1744075845959,-553.44166788,0.00022465,2]
[357464082,1744075845970,-500.0,0.00022465,2]
[357464083,1744075845980,-500.0,0.00022465,2]
[357464084,1744075845991,-500.0,0.00022465,2]
[357464085,1744075846002,-637.07352425,0.00022465,2]
[357464086,1744075846018,-500.0,0.00022465,2]
[357464087,1744075846030,-613.65,0.00022465,2]
[357464088,1744075846040,-500.0,0.00022465,2]
[357464089,1744075846051,-500.0,0.00022465,2]
[357464090,1744075846061,-500.0,0.00022465,2]
[357464091,1744075846073,-500.0,0.00022465,2]
[357464092,1744075846093,-1243.28,0.00022465,2]
[357464093,1744075846106,-500.0,0.00022465,2]
[357464094,1744075846116,-500.0,0.00022465,2]
[357464095,1744075846126,-500.0,0.00022465,2]
[357464096,1744075846135,-571.29,0.00022465,2]
[357464097,1744075846145,-1564.56,0.00022465,2]
[357464098,1744075846155,-806.0,0.00022465,2]
[357464099,1744075846165,-500.0,0.00022465,2]
[357464100,1744075846175,-2890.56,0.00022465,2]
[357464101,1744075846186,-500.0,0.00022465,2]
[357464102,1744075846195,-500.0,0.00022465,2]
[357464103,1744075846206,-645.6,0.00022465,2]
[357464104,1744075846216,-500.0,0.00022465,2]
[357464105,1744075846226,-500.0,0.00022465,2]
[357464106,1744075846235,-560.24,0.00022465,2]
[357464107,1744075846245,-500.0,0.00022465,2]
[357464108,1744075846255,-500.0,0.00022465,2]
[357464109,1744075846264,-500.0,0.00022465,2]
[357464110,1744075846274,-500.0,0.00022465,2]
[357464111,1744075846283,-500.0,0.00022465,2]
[357464112,1744075846293,-500.0,0.00022465,2]
[357464113,1744075846303,-500.0,0.00022465,2]
[357464114,1744075846312,-500.0,0.00022465,2]
[357464115,1744075846322,-686.29,0.00022465,2]
[357464116,1744075846331,-644.83,0.00022465,2]
[357464117,1744075846341,-158.6695493,0.00022465,2]
[357464118,1744075846351,-683.69,0.00022465,2]
[357464119,1744075846361,-963.6,0.00022465,2]
[357464120,1744075846370,-745.08,0.00022465,2]
[357464121,1744075846380,-500.0,0.00022465,2]
[357464122,1744075846390,-500.0,0.00022465,2]
[357464123,1744075846399,-500.0,0.00022465,2]
[357464124,1744075846409,-500.0,0.00022465,2]
[357464125,1744075846418,-500.0,0.00022465,2]
[357464126,1744075846428,-5061.69,0.00022465,2]
[357464127,1744075846437,-500.0,0.00022465,2]
[357464128,1744075846447,-500.0,0.00022465,2]
[357464129,1744075846456,-1159.91,0.00022465,2]
[357464130,1744075846466,-500.0,0.00022465,2]
[357464131,1744075846477,-1279.45,0.00022465,2]
[357464132,1744075846486,-500.0,0.00022465,2]
[357464133,1744075846495,-643.68,0.00022465,2]
[357464134,1744075846505,-500.0,0.00022465,2]
[357464135,1744075846515,-996.41,0.00022465,2]
[357464136,1744075846524,-500.0,0.00022465,2]
[357464137,1744075846533,-645.19,0.00022465,2]
[357464138,1744075846543,-500.0,0.00022465,2]
[357464139,1744075846552,-500.0,0.00022465,2]
[357464140,1744075846562,-500.0,0.00022465,2]
[357464141,1744075846572,-690.67,0.00022465,2]
[357464142,1744075846582,-500.0,0.00022465,2]
[357464143,1744075846595,-176.24813991,0.00022465,2]
[357464144,1744075846605,-500.0,0.00022465,2]
[357464145,1744075846614,-500.0,0.00022465,2]
[357464146,1744075846624,-886.21,0.00022465,2]
[357464147,1744075846635,-500.0,0.00022465,2]
[357464148,1744075846644,-917.76,0.00022465,2]
[357464149,1744075846654,-500.0,0.00022465,2]
[357464150,1744075846663,-500.0,0.00022465,2]
[357464151,1744075846674,-500.0,0.00022465,2]
[357464152,1744075846684,-1205.86,0.00022465,2]
[357464153,1744075846694,-650.7,0.00022465,2]
[357464154,1744075846703,-500.0,0.00022465,2]
[357464155,1744075846713,-500.0,0.00022465,2]
[357464156,1744075846723,-718.92,0.00022465,2]
[357464157,1744075846733,-906.03,0.00022465,2]
[357464159,1744075846742,-500.0,0.00022465,2]
[357464160,1744075846752,-657.7,0.00022465,2]
[357464161,1744075846763,-500.0,0.00022465,2]
[357464162,1744075846772,-500.0,0.00022465,2]
[357464163,1744075846782,-500.0,0.00022465,2]
[357464164,1744075846792,-510.27723003,0.00022465,2]
[357464165,1744075846801,-1058.79,0.00022465,2]
[357464166,1744075846811,-500.0,0.00022465,2]
[357464167,1744075846821,-1529.51,0.00022465,2]
[357464168,1744075846830,-517.20168778,0.00022465,2]
[357464169,1744075846840,-500.0,0.00022465,2]
[357464170,1744075846850,-500.0,0.00022465,2]
[357464171,1744075846860,-500.0,0.00022465,2]
[357464172,1744075846869,-923.55,0.00022465,2]
[357464173,1744075846880,-605.62,0.00022465,2]
[357464174,1744075846933,-1846.61,0.00022465,2]
[357464175,1744075846944,-200.0,0.00022625,2]
[357464176,1744075846954,-260.0,0.00022637,2]
[357464177,1744075846965,-370000.0,0.00022639,2]
[357464178,1744075846974,-500.0,0.00022673,2]
[357464179,1744075846984,-500.0,0.00022673,2]
[357464180,1744075846994,-500.0,0.00022673,2]
[357464181,1744075847003,-500.0,0.00022673,2]
[357464182,1744075847012,-500.0,0.00022673,2]
[357464183,1744075847022,-598.09930283,0.00022673,2]
[357464184,1744075847031,-500.0,0.00022673,2]
[357464185,1744075847040,-500.0,0.00022673,2]
[357464186,1744075847050,-500.0,0.00022673,2]
[357464187,1744075847060,-500.0,0.00022673,2]
[357464188,1744075847069,-500.0,0.00022673,2]
[357464189,1744075847079,-500.0,0.00022673,2]
[357464190,1744075847088,-500.0,0.00022673,2]
[357464191,1744075847097,-500.0,0.00022673,2]
[357464192,1744075847108,-500.0,0.00022673,2]
[357464193,1744075847117,-500.0,0.00022673,2]
[357464194,1744075847127,-500.0,0.00022673,2]
[357464195,1744075847136,-500.0,0.00022673,2]
[357464196,1744075847145,-500.0,0.00022673,2]
[357464197,1744075847155,-500.0,0.00022673,2]
[357464198,1744075847164,-500.0,0.00022673,2]
[357464199,1744075847174,-500.0,0.00022673,2]
[357464200,1744075847184,-500.0,0.00022673,2]
[357464201,1744075847194,-500.0,0.00022673,2]
[357464202,1744075847203,-500.0,0.00022673,2]
[357464203,1744075847215,-390.1040898,0.00022673,2]
[357464204,1744075847225,-500.0,0.00022673,2]
[357464205,1744075847234,-500.0,0.00022739,2]
[357464206,1744075847244,-500.0,0.00022739,2]
[357464207,1744075847253,-500.0,0.00022739,2]
[357464208,1744075847263,-500.0,0.00022739,2]
[357464209,1744075847272,-500.0,0.00022739,2]
[357464210,1744075847282,-500.0,0.00022739,2]
[357464211,1744075847291,-500.0,0.00022739,2]
[357464212,1744075847300,-500.0,0.00022739,2]
[357464213,1744075847310,-375.93401115,0.00022739,2]
[357464214,1744075847319,-500.0,0.00022739,2]
[357464215,1744075847328,-500.0,0.00022739,2]
[357464216,1744075847338,-500.0,0.00022739,2]
[357464217,1744075847348,-171.25021841,0.00022739,2]
[357464218,1744075847357,-500.0,0.00022739,2]
[357464219,1744075847367,-500.0,0.00022739,2]
[357464220,1744075847376,-500.0,0.00022739,2]
[357464221,1744075847386,-500.0,0.00022739,2]
[357464222,1744075847395,-500.0,0.00022739,2]
[357464223,1744075847404,-200.0,0.00022739,2]
[357464224,1744075847414,-500.0,0.00022739,2]
[357464225,1744075847423,-500.0,0.00022739,2]
[357464226,1744075847433,-500.0,0.00022739,2]
[357464227,1744075847442,-500.0,0.00022739,2]
[357464228,1744075847451,-500.0,0.00022739,2]
[357464229,1744075847462,-500.0,0.00022739,2]
[357464230,1744075847472,-500.0,0.00022739,2]
[357464231,1744075847481,-500.0,0.00022739,2]
[357464232,1744075847490,-500.0,0.00022739,2]
[357464233,1744075847500,-500.0,0.00022739,2]
[357464234,1744075847509,-684.93,0.00022739,2]
[357464235,1744075847518,-500.0,0.00022739,2]
[357464236,1744075847528,-500.0,0.00022739,2]
[357464237,1744075847537,-500.0,0.00022739,2]
[357464238,1744075847546,-500.0,0.00022739,2]
[357464239,1744075847555,-500.0,0.00022739,2]
[357464240,1744075847565,-500.0,0.00022739,2]
[357464241,1744075847575,-627.85,0.00022739,2]
[357464242,1744075847585,-500.0,0.00022739,2]
[357464243,1744075847597,-500.0,0.00022739,2]
[357464244,1744075847607,-536.57,0.00022739,2]
[357464245,1744075847617,-500.0,0.00022739,2]
[357464246,1744075847626,-500.0,0.00022739,2]
[357464247,1744075847636,-539.51,0.00022739,2]
[357464248,1744075847646,-500.0,0.00022739,2]
[357464249,1744075847655,-197.98892385,0.00022739,2]
[357464250,1744075847666,-500.0,0.00022739,2]
[357464251,1744075847675,-500.0,0.00022739,2]
[357464252,1744075847685,-500.0,0.00022739,2]
[357464253,1744075847695,-500.0,0.00022739,2]
[357464254,1744075847704,-500.0,0.00022739,2]
[357464255,1744075847715,-656.43,0.00022739,2]
[357464256,1744075847724,-500.0,0.00022739,2]
[357464257,1744075847733,-562.19,0.00022739,2]
[357464258,1744075847743,-500.0,0.00022739,2]
[357464259,1744075847753,-500.0,0.00022739,2]
[357464260,1744075847763,-500.0,0.00022739,2]
[357464261,1744075847772,-833.59,0.00022739,2]
[357464262,1744075847782,-500.0,0.00022739,2]
[357464263,1744075847791,-500.0,0.00022739,2]
[357464264,1744075847801,-500.0,0.00022739,2]
[357464265,1744075847811,-500.0,0.00022739,2]
[357464266,1744075847820,-500.0,0.00022739,2]
[357464267,1744075847829,-500.0,0.00022739,2]
[357464268,1744075847839,-500.0,0.00022739,2]
[357464269,1744075847849,-500.0,0.00022739,2]
[357464270,1744075847858,-500.0,0.00022739,2]
[357464271,1744075847868,-500.0,0.00022739,2]
[357464272,1744075847877,-500.0,0.00022739,2]
[357464273,1744075847887,-500.0,0.00022739,2]
[357464274,1744075847897,-511.39,0.00022739,2]
[357464275,1744075847907,-500.0,0.00022739,2]
[357464276,1744075847917,-500.0,0.00022739,2]
[357464277,1744075847928,-500.0,0.00022739,2]
[357464278,1744075847937,-500.0,0.00022739,2]
[357464279,1744075847947,-998.79,0.00022739,2]
[357464280,1744075847956,-500.0,0.00022739,2]
[357464281,1744075847967,-500.0,0.00022739,2]
[357464282,1744075847976,-500.0,0.00022739,2]
[357464283,1744075847986,-500.0,0.00022739,2]
[357464284,1744075847996,-706.46,0.00022739,2]
[357464285,1744075848005,-500.0,0.00022739,2]
[357464286,1744075848015,-500.0,0.00022739,2]
[357464287,1744075848025,-500.0,0.00022739,2]
[357464288,1744075848034,-747.15,0.00022739,2]
[357464289,1744075848044,-500.0,0.00022739,2]
[357464290,1744075848053,-500.0,0.00022739,2]
[357464291,1744075848063,-500.0,0.00022739,2]
[357464292,1744075848073,-500.0,0.00022739,2]
[357464293,1744075848083,-634.94,0.00022739,2]
[357464294,1744075848092,-613.65,0.00022739,2]
[357464295,1744075848102,-500.0,0.00022739,2]
[357464296,1744075848112,-500.0,0.00022739,2]
[357464297,1744075848121,-500.0,0.00022739,2]
[357464298,1744075848131,-1243.28,0.00022739,2]
[357464299,1744075848141,-500.0,0.00022739,2]
[357464300,1744075848151,-500.0,0.00022739,2]
[357464301,1744075848161,-571.29,0.00022739,2]
[357464302,1744075848172,-1564.56,0.00022739,2]
[357464303,1744075848183,-806.0,0.00022739,2]
[357464304,1744075848193,-500.0,0.00022739,2]
[357464305,1744075848204,-2890.56,0.00022739,2]
[357464306,1744075848215,-375.45586406,0.00022739,2]
[357464307,1744075848224,-645.6,0.00022739,2]
[357464308,1744075848235,-500.0,0.00022739,2]
[357464309,1744075848244,-560.24,0.00022739,2]
[357464310,1744075848253,-500.0,0.00022739,2]
[357464311,1744075848263,-500.0,0.00022739,2]
[357464312,1744075848273,-500.0,0.00022739,2]
[357464313,1744075848282,-500.0,0.00022739,2]
[357464314,1744075848292,-500.0,0.00022739,2]
[357464315,1744075848301,-500.0,0.00022739,2]
[357464316,1744075848311,-500.0,0.00022739,2]
[357464317,1744075848320,-686.29,0.00022739,2]
[357464318,1744075848330,-644.83,0.00022739,2]
[357464319,1744075848340,-683.69,0.00022739,2]
[357464320,1744075848350,-963.6,0.00022739,2]
[357464321,1744075848360,-745.08,0.00022739,2]
[357464322,1744075848369,-500.0,0.00022739,2]
[357464323,1744075848379,-500.0,0.00022739,2]
[357464324,1744075848388,-388.52156503,0.00022739,2]
[357464325,1744075848398,-500.0,0.00022739,2]
[357464326,1744075848408,-500.0,0.00022739,2]
[357464327,1744075848418,-5061.69,0.00022739,2]
[357464328,1744075848427,-500.0,0.00022739,2]
[357464329,1744075848436,-500.0,0.00022739,2]
[357464330,1744075848446,-1159.91,0.00022739,2]
[357464331,1744075848456,-500.0,0.00022739,2]
[357464332,1744075848470,-1279.45,0.00022739,2]
[357464333,1744075848479,-500.0,0.00022739,2]
[357464334,1744075848490,-643.68,0.00022739,2]
[357464335,1744075848500,-500.0,0.00022739,2]
[357464336,1744075848509,-996.41,0.00022739,2]
[357464337,1744075848519,-500.0,0.00022739,2]
[357464338,1744075848530,-645.19,0.00022739,2]
[357464339,1744075848540,-500.0,0.00022739,2]
[357464340,1744075848550,-273.65,0.00022739,2]
[357464341,1744075848560,-690.67,0.00022739,2]
[357464342,1744075848570,-500.0,0.00022739,2]
[357464343,1744075848581,-500.0,0.00022739,2]
[357464344,1744075848594,-500.0,0.00022739,2]
[357464345,1744075848603,-886.21,0.00022739,2]
[357464346,1744075848613,-917.76,0.00022739,2]
[357464347,1744075848622,-500.0,0.00022739,2]
[357464348,1744075848633,-500.0,0.00022739,2]
[357464349,1744075848642,-500.0,0.00022739,2]
[357464350,1744075848652,-1205.86,0.00022739,2]
[357464351,1744075848662,-650.7,0.00022739,2]
[357464352,1744075848673,-500.0,0.00022739,2]
[357464353,1744075848682,-500.0,0.00022739,2]
[357464354,1744075848692,-718.92,0.00022739,2]
[357464355,1744075848701,-906.03,0.00022739,2]
[357464356,1744075848712,-657.7,0.00022739,2]
[357464357,1744075848722,-500.0,0.00022739,2]
[357464358,1744075848732,-223.6834008,0.00022739,2]
[357464359,1744075848742,-500.0,0.00022739,2]
[357464360,1744075848753,-1058.79,0.00022739,2]
[357464361,1744075848762,-500.0,0.00022739,2]
[357464362,1744075848772,-1529.51,0.00022739,2]
[357464363,1744075848782,-500.0,0.00022739,2]
[357464364,1744075848791,-507.68011418,0.00022739,2]
[357464365,1744075848802,-500.0,0.00022739,2]
[357464366,1744075848812,-923.55,0.00022739,2]
[357464367,1744075848822,-605.62,0.00022739,2]
[357464368,1744075848831,-1846.61,0.00022739,2]
[357464369,1744075848841,-151.0,0.00023,2]
[357464370,1744075848851,-500.0,0.00023013,2]
[357464371,1744075848860,-500.0,0.00023013,2]
[357464372,1744075848869,-500.0,0.00023013,2]
[357464373,1744075848879,-500.0,0.00023013,2]
[357464374,1744075848888,-611.25,0.00023013,2]
[357464375,1744075848898,-500.0,0.00023013,2]
[357464376,1744075848908,-500.0,0.00023013,2]
[357464377,1744075848918,-500.0,0.00023013,2]
[357464378,1744075848928,-500.0,0.00023013,2]
[357464379,1744075848939,-500.0,0.00023013,2]
[357464380,1744075848949,-500.0,0.00023013,2]
[357464381,1744075848961,-684.93,0.00023013,2]
[357464382,1744075848971,-500.0,0.00023013,2]
[357464383,1744075848981,-500.0,0.00023013,2]
[357464384,1744075848991,-500.0,0.00023013,2]
[357464385,1744075849002,-500.0,0.00023013,2]
[357464386,1744075849012,-627.85,0.00023013,2]
[357464387,1744075849021,-500.0,0.00023013,2]
[357464388,1744075849032,-536.57,0.00023013,2]
[357464389,1744075849041,-500.0,0.00023013,2]
[357464390,1744075849051,-539.51,0.00023013,2]
[357464391,1744075849061,-500.0,0.00023013,2]
[357464392,1744075849072,-500.0,0.00023013,2]
[357464393,1744075849083,-500.0,0.00023013,2]
[357464394,1744075849092,-500.0,0.00023013,2]
[357464395,1744075849102,-500.0,0.00023013,2]
[357464396,1744075849111,-656.43,0.00023013,2]
[357464397,1744075849121,-500.0,0.00023013,2]
[357464398,1744075849131,-562.19,0.00023013,2]
[357464399,1744075849140,-249.82684509,0.00023013,2]
[357464400,1744075849150,-833.59,0.00023013,2]
[357464401,1744075849159,-500.0,0.00023013,2]
[357464402,1744075849169,-339.96220746,0.00023013,2]
[357464403,1744075849178,-500.0,0.00023013,2]
[357464404,1744075849187,-500.0,0.00023013,2]
[357464405,1744075849197,-500.0,0.00023013,2]
[357464406,1744075849207,-511.39,0.00023013,2]
[357464407,1744075849217,-500.0,0.00023013,2]
[357464408,1744075849227,-500.0,0.00023013,2]
[357464409,1744075849236,-500.0,0.00023013,2]
[357464410,1744075849246,-500.0,0.00023013,2]
[357464411,1744075849256,-998.79,0.00023013,2]
[357464412,1744075849265,-500.0,0.00023013,2]
[357464413,1744075849278,-500.0,0.00023013,2]
[357464414,1744075849287,-500.0,0.00023013,2]
[357464415,1744075849297,-500.0,0.00023013,2]
[357464416,1744075849306,-706.46,0.00023013,2]
[357464417,1744075849316,-500.0,0.00023013,2]
[357464418,1744075849325,-500.0,0.00023013,2]
[357464419,1744075849334,-500.0,0.00023013,2]
[357464420,1744075849343,-747.15,0.00023013,2]
[357464421,1744075849353,-500.0,0.00023013,2]
[357464422,1744075849363,-500.0,0.00023013,2]
[357464423,1744075849373,-500.0,0.00023013,2]
[357464424,1744075849382,-613.65,0.00023013,2]
[357464425,1744075849392,-500.0,0.00023013,2]
[357464426,1744075849402,-500.0,0.00023013,2]
[357464427,1744075849411,-500.0,0.00023013,2]
[357464428,1744075849421,-1243.28,0.00023013,2]
[357464429,1744075849430,-500.0,0.00023013,2]
[357464430,1744075849440,-500.0,0.00023013,2]
[357464431,1744075849450,-571.29,0.00023013,2]
[357464432,1744075849461,-1564.56,0.00023013,2]
[357464433,1744075849470,-806.0,0.00023013,2]
[357464434,1744075849480,-500.0,0.00023013,2]
[357464435,1744075849490,-2890.56,0.00023013,2]
[357464436,1744075849500,-645.6,0.00023013,2]
[357464437,1744075849509,-500.0,0.00023013,2]
[357464438,1744075849519,-560.24,0.00023013,2]
[357464439,1744075849528,-500.0,0.00023013,2]
[357464440,1744075849538,-500.0,0.00023013,2]
[357464441,1744075849548,-500.0,0.00023013,2]
[357464442,1744075849557,-500.0,0.00023013,2]
[357464443,1744075849567,-500.0,0.00023013,2]
[357464444,1744075849576,-500.0,0.00023013,2]
[357464445,1744075849587,-500.0,0.00023013,2]
[357464446,1744075849600,-686.29,0.00023013,2]
[357464447,1744075849609,-644.83,0.00023013,2]
[357464448,1744075849618,-683.69,0.00023013,2]
[357464449,1744075849628,-963.6,0.00023013,2]
[357464450,1744075849639,-745.08,0.00023013,2]
[357464451,1744075849649,-500.0,0.00023013,2]
[357464452,1744075849659,-500.0,0.00023013,2]
[357464453,1744075849672,-500.0,0.00023013,2]
[357464454,1744075849683,-500.0,0.00023013,2]
[357464455,1744075849692,-5061.69,0.00023013,2]
[357464456,1744075849702,-500.0,0.00023013,2]
[357464457,1744075849714,-1159.91,0.00023013,2]
[357464458,1744075849724,-500.0,0.00023013,2]
[357464459,1744075849734,-1279.45,0.00023013,2]
[357464460,1744075849743,-247.68008531,0.00023013,2]
[357464461,1744075849754,-643.68,0.00023013,2]
[357464462,1744075849764,-566.60554956,0.00023013,2]
[357464463,1744075849774,-996.41,0.00023013,2]
[357464464,1744075849784,-645.19,0.00023013,2]
[357464465,1744075849794,-500.0,0.00023013,2]
[357464466,1744075849805,-690.67,0.00023013,2]
[357464467,1744075849815,-500.0,0.00023013,2]
[357464468,1744075849824,-500.0,0.00023013,2]
[357464469,1744075849834,-500.0,0.00023013,2]
[357464470,1744075849844,-886.21,0.00023013,2]
[357464471,1744075849854,-917.76,0.00023013,2]
[357464472,1744075849864,-500.0,0.00023013,2]